Cogmind - Beta 12 --- EXPLORER MODE // 2023.08.21 @ 22:24:28 Player: Phantom Result: Destroyed by H-66 Slayer with Gauss Rifle Performance ------------- Evolutions (4) 2000 Regions Visited (13) 2600 Robots Destroyed (149) 745 Value Destroyed (6252) 6252 Prototype IDs (214) 4280 Alien Tech Used (0) 0 Bonus (4562) 4562 TOTAL SCORE: 20439 Bonus ------- High Alert Combat Kills 316 Follower Combat Kills 246 Entered Garrisons 200 Used RIF Installer 500 Met Data Miner 300 Used Data Conduit 3000 Cogmind --------- Core Integrity 0/850 Matter 140/300 Energy 100/100 System Corruption 4% Temperature Cool (0) Movement Core (50) Location -6/Extension Parts ------- > --- POWER (2) -------- (None) > --- PROPULSION (4) --- (None) > --- UTILITY (7) ------ Relay Coupler [Grunt] (42) > --- WEAPON (3) ------- (None) > --- INVENTORY (5) ---- Hacking Suite Relay Coupler [NC] (46) Relay Coupler [Brawler] (42) Relay Coupler [Duelist] (33) Remote Datajack Peak State ------------ > --- POWER ------------ Light Angular Momentum Engine Light Fission Core > --- PROPULSION ------- Flexi-carbon Leg Flexi-carbon Leg Flexi-carbon Leg Flexi-carbon Leg > --- UTILITY ---------- Improved Heat Sink Advanced Heat Sink Large Storage Unit Hardened Medium Armor Plating Layered Light Armor Plating Layered Light Armor Plating Relay Coupler [Grunt] > --- WEAPON ----------- Heavy Ion Cannon Coil Gun Slug Cannon > --- INVENTORY -------- Carbon-fiber Leg Improved Carbon-fiber Leg Improved Carbon-fiber Leg Layered Light Armor Plating Hacking Suite Relay Coupler [NC] Relay Coupler [Brawler] Relay Coupler [Duelist] Relay Coupler [Sentry] Relay Coupler [Demolisher] Heavy Laser Gauss Rifle Heavy Rocket Launcher Remote Datajack [Rating: 71] Favorites ----------- Power Improved Deuterium Engine Engine Improved Deuterium Engine Power Core Light Nuclear Core Propulsion Light Treads Treads Light Treads Leg Aluminum Leg Wheel Armored Huge Wheel Utility Large Storage Unit Device Experimental Sensor Array Storage Large Storage Unit Processor Targeting Computer Hackware Hacking Suite Protection Weapon Shielding Weapon Assault Rifle Energy Gun EM Pulse Gun Energy Cannon Heavy Ion Cannon Ballistic Gun Assault Rifle Ballistic Cannon Flak Cannon Launcher Heavy Rocket Launcher Special Weapon Remote Datajack Special Melee Weapon Improved Datajack Build | -11 -10 -10 -9 -8 -8 -8 -7 -7 -7 -7 -6 -6 -6 ------- Run | Jun Mat Min Mat Mat Gar Mat Fac Low Low Dat Pro Fac Ext Slots Evolved 9 | . 1 . 2 2 . . 2 . . . . 2 . Power 1 | . . . . 1 . . . . . . . . . Propulsion 2 | . . . 1 . . . . . . . . 1 . Utility 5 | . . . 1 1 . . 2 . . . . 1 . Weapon 1 | . 1 . . . . . . . . . . . . Parts Attached 100 | 4 12 1 7 2 12 16 5 3 . 2 13 14 9 Power 10 | 1 . . . 1 . 4 . . . . 3 1 . Engine 7 | 1 . . . . . 3 . . . . 3 . . Core 3 | . . . . 1 . 1 . . . . . 1 . Reactor . | . . . . . . . . . . . . . . Propulsion 25 | 2 2 . 4 . 1 2 1 . . . 4 6 3 Treads 6 | . . . 3 . 1 2 . . . . . . . Leg 16 | 2 2 . 1 . . . . . . . 2 6 3 Wheel 3 | . . . . . . . 1 . . . 2 . . Hover . | . . . . . . . . . . . . . . Flight . | . . . . . . . . . . . . . . Utility 24 | 1 5 1 1 1 1 2 3 1 . 1 2 3 2 Device 7 | . . 1 . 1 . 1 . 1 . . 1 1 1 Storage 4 | 1 3 . . . . . . . . . . . . Processor 1 | . . . . . . 1 . . . . . . . Hackware 5 | . . . . . 1 . 3 . . 1 . . . Protection 7 | . 2 . 1 . . . . . . . 1 2 1 Artifact . | . . . . . . . . . . . . . . Weapon 41 | . 5 . 2 . 10 8 1 2 . 1 4 4 4 Energy Gun 10 | . 3 . 1 . . 3 . . . . 1 1 1 Energy Cannon 2 | . . . . . . . . . . . . 1 1 Ballistic Gun 12 | . 2 . 1 . 5 1 . . . . . 2 1 Ballistic Cannon 5 | . . . . . . 1 1 . . . 3 . . Launcher 7 | . . . . . 5 . . . . 1 . . 1 Special Weapon 1 | . . . . . . . . 1 . . . . . Impact Weapon . | . . . . . . . . . . . . . . Slashing Weapon . | . . . . . . . . . . . . . . Piercing Weapon . | . . . . . . . . . . . . . . Special Melee Weapon 4 | . . . . . . 3 . 1 . . . . . Unidentified Prototypes 2 | . . 1 . . . 1 . . . . . . . Parts Lost 44 | . . . 2 . 1 3 . 1 . 3 12 3 19 Power 7 | . . . . . . 1 . . . 1 3 . 2 Propulsion 10 | . . . . . . . . . . . 3 . 7 Utility 12 | . . . . . 1 1 . 1 . 1 2 2 4 Weapon 15 | . . . 2 . . 1 . . . 1 4 1 6 Highest Loss Streak 16 | . . . 1 . 1 2 . 1 . 3 7 1 16 To Critical Strikes . | . . . . . . . . . . . . . . Average Slot Usage (%) 91 | . 98 100 98 100 96 99 89 83 78 73 65 87 92 Engine 10 | . 12 12 10 8 8 9 14 14 14 12 9 6 5 Core 2 | . . . . 8 8 6 . . . . . 4 5 Treads 9 | . . . 8 25 25 25 19 . . . . . . Leg 10 | . 24 25 21 . . . . . . . 2 20 24 Wheel 1 | . . . . . . . . 7 7 7 6 . . Device 7 | . . 1 10 16 16 10 7 7 7 3 5 7 9 Storage 8 | . 11 12 10 8 8 8 7 7 7 7 7 6 5 Processor 2 | . . . . . . 5 7 7 7 7 2 . . Hackware 6 | . . . . . . 8 12 19 14 17 16 9 6 Protection 5 | . 11 10 10 8 4 . . . . . . 13 16 Energy Gun 10 | . 24 25 16 8 8 8 7 7 7 4 4 1 . Ballistic Gun 7 | . 11 12 12 16 15 7 . . . . . 4 6 Ballistic Cannon 3 | . . . . . . 4 6 7 7 7 9 6 4 Naked Turns . | . . . . . . . . . . . . . . Heaviest Build 92 | 15 92 33 35 42 44 54 54 60 60 60 60 74 74 Greatest Support 80 | 20 20 20 63 63 63 63 63 28 28 28 28 80 80 Greatest Overweight (x) 10 | . 10 1 1 . . . 1 2 2 2 2 1 6 Average Overweight (x) . | . . 1 . . . . . 1 2 1 1 . . Largest Inventory Capacity 25 | 10 25 15 15 15 15 15 15 15 15 15 15 15 15 Average Capacity 14 | 9 14 15 15 15 15 15 15 15 15 15 15 15 14 Most Carried 15 | 8 15 15 15 12 15 15 15 15 13 13 15 15 15 Average Carried 12 | 5 11 14 11 11 13 14 12 13 13 12 13 12 13 Final Capacity 15 | 10 15 15 15 15 15 15 15 15 15 15 15 15 5 Final Carried 15 | 8 15 13 13 11 15 13 13 13 13 12 11 14 5 Class Distribution -------------------- 28% | Hacker-Tank 26% | Bothacker-Mutant 16% | Bothacker-Tank 11% | Hacker-Mutant 7% | Hacker-Skirmisher 6% | Bothacker-Gunner Dominant Class ---------------- Hacker-Tank | -10/Materials Hacker-Tank | -10/Mines Hacker-Skirmisher | -9/Materials Hacker-Tank | -8/Materials Hacker-Tank | -8/Garrison Bothacker-Mutant | -8/Materials Bothacker-Mutant | -7/Factory Bothacker-Mutant | -7/Lower Caves Hacker-Mutant | -7/Lower Caves Hacker-Mutant | -7/Data Miner Bothacker-Mutant | -6/Proximity Caves Bothacker-Tank | -6/Factory Bothacker-Tank | -6/Extension Resources | -11 -10 -10 -9 -8 -8 -8 -7 -7 -7 -7 -6 -6 -6 ----------- Run | Jun Mat Min Mat Mat Gar Mat Fac Low Low Dat Pro Fac Ext Matter Collected 3269 | 203 162 58 148 . 540 610 28 143 100 . 579 381 317 Remotely . | . . . . . . . . . . . . . . Salvage Created 4992 | . 373 144 481 . 709 1340 76 110 251 71 303 384 750 Parts 285 | . 19 10 42 . 41 71 4 5 5 2 12 18 56 Haulers Intercepted . | . . . . . . . . . . . . . . Recyclers Shooed 2 | . . . 1 . . . . . . . . . 1 Parts Field Recycled . | . . . . . . . . . . . . . . Retrieved Matter . | . . . . . . . . . . . . . . Parts Self-Destructed . | . . . . . . . . . . . . . . Prevented . | . . . . . . . . . . . . . . Kills | -11 -10 -10 -9 -8 -8 -8 -7 -7 -7 -7 -6 -6 -6 ------- Run | Jun Mat Min Mat Mat Gar Mat Fac Low Low Dat Pro Fac Ext Combat Hostiles Destroyed 115 | . 6 4 13 . 27 24 2 3 6 4 11 8 7 Guns 61 | . 6 3 12 . 11 16 1 2 . . 1 5 4 Cannons 27 | . . . . . . 5 1 1 6 . 10 2 2 AOE 26 | . . 1 1 . 16 3 . . . 4 . . 1 Classes Destroyed 16 | . 3 1 1 . 1 4 . 1 2 . 1 . 2 Worker 1 | . . . . . . . . . . . . . 1 Builder 8 | . . . . . . 1 . . . . . . 7 Tunneler 3 | . 1 . . . . . . . . . . . 2 Recycler 3 | . . . . . . 1 . . . . . . 2 Operator 2 | . . . . . . 2 . . . . . . . Drone 2 | . . . . . . . . . . . 2 . . Watcher 17 | . 3 . 5 . . 5 . . . . . 1 3 Swarmer 23 | . . 2 8 . 11 2 . . . . . . . Grunt 52 | . 6 2 2 . 13 11 1 1 2 . 8 2 4 Brawler 2 | . . . . . . . . . 1 . . 1 . Duelist 1 | . . . . . . . . . 1 . . . . Sentry 16 | . . . 3 . 1 9 . 1 . . 1 . 1 Specialist 2 | . . . . . 2 . . . . . . . . Hunter 9 | . . . . . . 2 1 . 2 . . 4 . Programmer 2 | . . . . . . . . 1 . . . 1 . Behemoth 2 | . . . . . . . . . . . . . 2 Enhanced Grunt 4 | . . . . . . . . . . 4 . . . Best Kill Streak 8 | . 3 2 5 . 8 4 1 1 3 4 2 3 8 Combat Bots Only 8 | . 2 2 5 . 8 3 1 1 3 4 2 3 3 Max Kills in Single Turn 3 | . 2 1 2 . 3 3 1 1 1 1 1 1 3 Gunslinging 1 | . . . 1 . . . . . . . . . . Exploded 3 | . . 1 1 . 3 2 . . . 1 . . 1 Melee . | . . . . . . . . . . . . . . Uniques/NPCs Destroyed . | . . . . . . . . . . . . . . Combat | -11 -10 -10 -9 -8 -8 -8 -7 -7 -7 -7 -6 -6 -6 -------- Run | Jun Mat Min Mat Mat Gar Mat Fac Low Low Dat Pro Fac Ext Damage Taken 7436 | . 184 75 262 . 387 580 66 61 81 596 1521 756 2867 Core 1492 | . 39 34 36 . 42 70 . 11 19 147 242 96 756 Absorbed by Shields 535 | . . . . . 170 117 . 81 92 75 . . . Redirected to Shielding 67 | . 17 9 29 . 12 . . . . . . . . Core Remaining (%) 76 | 100 . 70 91 . . 79 . . . . 40 . . Volleys Fired 309 | . 15 6 26 . 56 71 5 11 15 12 33 23 36 Largest 3 | . 3 3 3 . 3 3 2 2 2 3 3 3 3 Hottest 162 | . 105 105 116 . 112 117 94 94 94 130 140 143 162 Shots Fired 746 | . 45 18 72 . 129 186 10 19 29 23 64 61 90 Gun 514 | . 45 18 72 . 108 160 5 8 14 4 8 22 50 Cannon 185 | . . . . . . 26 5 11 15 8 55 39 26 Launcher 46 | . . . . . 21 . . . . 10 1 . 14 Special 1 | . . . . . . . . . . 1 . . . Kinetic 427 | . 15 6 26 . 72 115 5 11 15 8 55 39 60 Thermal 140 | . . . 13 . 36 45 . . . . 8 22 16 Explosive 46 | . . . . . 21 . . . . 10 1 . 14 Electromagnetic 132 | . 30 12 33 . . 26 5 8 14 4 . . . Robot Hit Streak 63 | . 19 12 15 . 38 63 25 37 24 15 24 19 28 Robot Miss Streak 8 | . 1 1 3 . 1 3 1 3 3 2 8 2 1 Penetration Max 1 | . . . . . . . . . . . 1 1 1 Secondary Targets 6 | . 2 1 2 . . 1 . . . . . . . Max Gunslinging Chain 1 | . 1 1 1 . . 1 . . . . . . . Shots Hit Robots 571 | . 30 15 41 . 86 149 10 18 28 23 53 43 75 Core Hits 365 | . 18 6 24 . 49 84 10 13 31 42 23 16 49 Critical Kills 4 | . . . . . . . . . . . 2 1 1 Critical Parts Destroyed 9 | . . . . . 1 . . . . . 4 3 1 Critical Strikes 21 | . . . 2 . 4 1 . . . . 7 4 3 Burn 7 | . . . 2 . 3 1 . . . . 1 . . Meltdown 1 | . . . . . . . . . . . . 1 . Destroy 13 | . . . . . 1 . . . . . 6 3 3 Melee Attacks 3 | . . . . . . 1 1 1 . . . . . Impact . | . . . . . . . . . . . . . . Slashing . | . . . . . . . . . . . . . . Piercing . | . . . . . . . . . . . . . . Sneak Attacks 1 | . . . . . . . . 1 . . . . . Combat Hostiles . | . . . . . . . . . . . . . . Follow-up Attacks . | . . . . . . . . . . . . . . Damage Inflicted 15188 | . 541 231 673 . 2555 2727 212 390 690 1521 1453 1033 3162 Guns 6459 | . 449 195 583 . 968 1984 105 122 315 53 143 437 1105 Cannons 3923 | . . . . . . 521 107 195 375 243 1310 596 576 Explosions 4799 | . 92 36 88 . 1587 222 . 73 . 1225 . . 1476 Melee . | . . . . . . . . . . . . . . Ramming 7 | . . . 2 . . . . . . . . . 5 Kinetic 6465 | . 95 55 136 . 621 1408 107 195 375 243 1310 616 1304 Thermal 2505 | . 92 36 216 . 347 804 . 73 . . 143 417 377 Explosive 4288 | . . . . . 1587 . . . . 1225 . . 1476 Electromagnetic 1923 | . 354 140 319 . . 515 105 122 315 53 . . . Impact . | . . . . . . . . . . . . . . Slashing . | . . . . . . . . . . . . . . Piercing . | . . . . . . . . . . . . . . Highest Corruption 4 | . . . . . . . . 1 1 1 1 3 4 Average Corruption 1 | . . . . . . . . 1 1 1 1 3 3 Corruption Purged . | . . . . . . . . . . . . . . Corruption Blocked . | . . . . . . . . . . . . . . Effects 42 | . . . . . . . . 1 6 3 11 2 19 Message Errors 8 | . . . . . . . . . 2 . 3 1 2 Matter Fused 9 | . . . . . . . . . 1 3 1 . 4 Heat Flow Errors 5 | . . . . . . . . 1 . . 2 . 2 Energy Discharges 8 | . . . . . . . . . 1 . 3 1 3 Parts Rejected 1 | . . . . . . . . . . . . . 1 Data Loss (minor) 4 | . . . . . . . . . . . 1 . 3 Data Loss (major) 3 | . . . . . . . . . 1 . . . 2 Misfires 3 | . . . . . . . . . 1 . 1 . 1 Alerts 1 | . . . . . . . . . . . . . 1 Overload Shots . | . . . . . . . . . . . . . . Overflow Damage 232 | . 9 . . . 7 . . . . 39 78 55 44 Projectiles 136 | . . . . . . . . . . . 71 22 43 Explosions 96 | . 9 . . . 7 . . . . 39 7 33 1 Melee . | . . . . . . . . . . . . . . Knockbacks 51 | . . . . . . 12 3 2 6 3 20 2 3 Impact 1 | . . . . . . . . . . . . . 1 Kinetic 48 | . . . . . . 11 3 2 6 3 19 2 2 Secondary 2 | . . . . . . 1 . . . . 1 . . Self-Inflicted Damage 273 | . . 33 35 . 26 17 . . . . 35 127 . Shots 9 | . . 1 1 . 2 1 . . . . 1 3 . Rammed . | . . . . . . . . . . . . . . Targets Rammed 4 | . . . 1 . . . . . . . . . 3 Kicked 4 | . . . 1 . . . . . . . . . 3 Crushed . | . . . . . . . . . . . . . . Highest Temperature 438 | . 189 97 201 . 269 438 99 236 230 235 147 381 313 Average Temperature 88 | . 62 44 63 . 103 90 49 75 81 137 41 142 103 Received Heat Transfer 2924 | . 144 36 171 . 234 258 18 39 28 . 781 99 1116 Effects 10 | . . . . . 1 4 . . . . . 4 1 Shutdowns 3 | . . . . . . 1 . . . . . 2 . Energy Bleed 4 | . . . . . 1 2 . . . . . 1 . Interference 1 | . . . . . . . . . . . . . 1 Damage (minor) 2 | . . . . . . 1 . . . . . 1 . Siege Activations . | . . . . . . . . . . . . . . Robots Corrupted . | . . . . . . . . . . . . . . Combat Hostiles . | . . . . . . . . . . . . . . Parts Fried 4 | . . . . . . 2 1 . 1 . . . . Impact Corruptions . | . . . . . . . . . . . . . . Robots Melted 1 | . . . . . . . . . . . . 1 . Combat Hostiles 1 | . . . . . . . . . . . . 1 . Parts Melted 8 | . . . 3 . 3 . . . . . 1 1 . Heat Transferred 5051 | . 100 50 581 . 1110 1754 . 50 . . 333 592 481 Parts Sabotaged . | . . . . . . . . . . . . . . Parts Stolen . | . . . . . . . . . . . . . . Parts Stripped . | . . . . . . . . . . . . . . Power Chain Reactions 8 | . 2 1 2 . . 2 . 1 . . . . . Missiles Intercepted . | . . . . . . . . . . . . . . Alert | -11 -10 -10 -9 -8 -8 -8 -7 -7 -7 -7 -6 -6 -6 ------- Run | Jun Mat Min Mat Mat Gar Mat Fac Low Low Dat Pro Fac Ext Peak Influence 966 | . 129 150 276 . 966 544 65 . . . . 760 276 Initial 600 | . . . . . . 344 . . . . . 600 136 Average 208 | . 39 41 103 . 551 230 23 . . . . 601 120 Maximum Alert Level 3 | . . . 1 . 3 2 . . . . . 3 1 Low Security (%) 63 | 100 100 100 86 100 14 44 100 . . . . . 79 Level 1 16 | . . . 13 . 13 40 . . . . . 18 20 Level 2 12 | . . . . . 31 15 . . . . . 71 . Level 3 6 | . . . . . 41 . . . . . . 10 . Level 4 . | . . . . . . . . . . . . . . Level 5 . | . . . . . . . . . . . . . . High Security . | . . . . . . . . . . . . . . Max Security . | . . . . . . . . . . . . . . Squads Dispatched 6 | . . . . . . 2 . . . . . 1 3 Investigation 1 | . . . . . . . . . . . . . 1 Extermination 1 | . . . . . . . . . . . . 1 . Reinforcement 4 | . . . . . . 2 . . . . . . 2 Assault . | . . . . . . . . . . . . . . Garrison . | . . . . . . . . . . . . . . Intercept . | . . . . . . . . . . . . . . Searches Triggered 1 | . . . . . . . . . . . . 1 . Construction Impeded 1 | . . . . . . . . . . . . . 1 Haulers Reinforced . | . . . . . . . . . . . . . . Active Scanning Responses . | . . . . . . . . . . . . . . Cargo Convoy Interrupts . | . . . . . . . . . . . . . . Stealth | -11 -10 -10 -9 -8 -8 -8 -7 -7 -7 -7 -6 -6 -6 --------- Run | Jun Mat Min Mat Mat Gar Mat Fac Low Low Dat Pro Fac Ext Distress Signals 8 | . . . 1 . . 5 . . . . . . 2 Communications Jammed . | . . . . . . . . . . . . . . Distress Signals . | . . . . . . . . . . . . . . Times Spotted 180 | . 11 5 19 . 27 45 6 4 7 4 14 10 28 Peak Tracking Total 11 | . 3 3 4 . 8 4 2 1 3 4 5 3 11 Tactical Retreats 15 | . . 2 . . . 7 1 1 1 . 2 . 1 Traps | -11 -10 -10 -9 -8 -8 -8 -7 -7 -7 -7 -6 -6 -6 ------- Run | Jun Mat Min Mat Mat Gar Mat Fac Low Low Dat Pro Fac Ext Traps Triggered 6 | . 2 . . . . 1 2 . . . . . 1 Indirectly . | . . . . . . . . . . . . . . Trap Hack Attempts . | . . . . . . . . . . . . . . Triggered . | . . . . . . . . . . . . . . Disarmed . | . . . . . . . . . . . . . . Reprogrammed . | . . . . . . . . . . . . . . Reused . | . . . . . . . . . . . . . . Traps Extracted . | . . . . . . . . . . . . . . Installed . | . . . . . . . . . . . . . . Triggered 2 | . . . . . . . . 2 . . . . . Machines | -11 -10 -10 -9 -8 -8 -8 -7 -7 -7 -7 -6 -6 -6 ---------- Run | Jun Mat Min Mat Mat Gar Mat Fac Low Low Dat Pro Fac Ext Machines Disabled 9 | . . . . . 4 . . . . . . 5 . Max in Single Turn 3 | . . . . . 1 . . . . . . 3 . Garrison Access 1 | . . . . . . . . . . . . 1 . Garrison Relay 4 | . . . . . 4 . . . . . . . . Machines Repaired . | . . . . . . . . . . . . . . Machines Sabotaged . | . . . . . . . . . . . . . . Overloaded Fab Kills . | . . . . . . . . . . . . . . Hacking | -11 -10 -10 -9 -8 -8 -8 -7 -7 -7 -7 -6 -6 -6 --------- Run | Jun Mat Min Mat Mat Gar Mat Fac Low Low Dat Pro Fac Ext Machines Accessed 40 | . 5 . 6 3 3 11 . 1 . . . 4 7 Terminals 36 | . 5 . 5 2 3 11 . . . . . 3 7 Fabricators . | . . . . . . . . . . . . . . Repair Stations . | . . . . . . . . . . . . . . Recycling Units 1 | . . . 1 . . . . . . . . . . Scanalyzers . | . . . . . . . . . . . . . . Garrison Access 2 | . . . . 1 . . . . . . . 1 . Total Hacks 102 | . 15 . 22 6 7 32 . 1 . . . 7 12 Successful 58 | . 8 . 10 3 4 19 . 1 . . . 6 7 Failed 44 | . 7 . 12 3 3 13 . . . . . 1 5 Catastrophic 8 | . 2 . 3 1 . 2 . . . . . . . Database Lockouts . | . . . . . . . . . . . . . . Manual 73 | . 13 . 15 5 7 25 . 1 . . . 5 2 Terminals 96 | . 15 . 21 5 7 32 . . . . . 4 12 Fabricators . | . . . . . . . . . . . . . . Repair Stations . | . . . . . . . . . . . . . . Recycling Units 1 | . . . 1 . . . . . . . . . . Scanalyzers . | . . . . . . . . . . . . . . Garrison Access 4 | . . . . 1 . . . . . . . 3 . Terminal Hacks 25 | . 3 . 4 . . 9 . 1 . . . 2 6 Record 1 | . . . . . . . . . . . . . 1 Robot Analysis 1 | . . . . . . 1 . . . . . . . Prototype ID Bank 1 | . . . . . . . . . . . . . 1 Open Door 6 | . . . . . . . . 1 . . . 1 4 Open DSF 1 | . . . . . . . . . . . . 1 . Machine Index 1 | . 1 . . . . . . . . . . . . Alert Level 1 | . . . . . . 1 . . . . . . . Unreport Threat 5 | . . . 2 . . 3 . . . . . . . Locate Traps 5 | . 1 . 2 . . 2 . . . . . . . Patrol Status 1 | . . . . . . 1 . . . . . . . Registered Components 1 | . 1 . . . . . . . . . . . . Zone Layout 1 | . . . . . . 1 . . . . . . . Fabricator Hacks . | . . . . . . . . . . . . . . Repair Station Hacks . | . . . . . . . . . . . . . . Recycling Unit Hacks 1 | . . . 1 . . . . . . . . . . Report Inventory 1 | . . . 1 . . . . . . . . . . Scanalyzer . | . . . . . . . . . . . . . . Garrison Access Hacks 4 | . . . . 1 . . . . . . . 3 . Unlock Access 2 | . . . . 1 . . . . . . . 1 . Seal Access 1 | . . . . . . . . . . . . 1 . Coupler Status 1 | . . . . . . . . . . . . 1 . Unauthorized Hacks 27 | . 5 . 5 2 3 10 . . . . . 1 1 Terminals 27 | . 5 . 5 2 3 10 . . . . . 1 1 Botnet 27 | . 5 . 5 2 3 10 . . . . . 1 1 Fabricators . | . . . . . . . . . . . . . . Repair Stations . | . . . . . . . . . . . . . . Recycling Units . | . . . . . . . . . . . . . . Scanalyzers . | . . . . . . . . . . . . . . Garrison Access . | . . . . . . . . . . . . . . Data Cores Recovered 2 | . . . . . . 2 . . . . . . . Used 1 | . . . . . . 1 . . . . . . . Hacking Detections 32 | . 5 . 5 2 3 11 . . . . . 2 4 Full Trace Events 1 | . . . . . 1 . . . . . . . . Feedback Events . | . . . . . . . . . . . . . . Feedback Blocked . | . . . . . . . . . . . . . . Robot Schematics Acquired . | . . . . . . . . . . . . . . Robots Built . | . . . . . . . . . . . . . . Authchips . | . . . . . . . . . . . . . . Time . | . . . . . . . . . . . . . . Total Robot Build Rating . | . . . . . . . . . . . . . . Part Schematics Acquired . | . . . . . . . . . . . . . . Parts Built . | . . . . . . . . . . . . . . Authchips . | . . . . . . . . . . . . . . Time . | . . . . . . . . . . . . . . Total Part Build Rating . | . . . . . . . . . . . . . . Parts Repaired . | . . . . . . . . . . . . . . Time . | . . . . . . . . . . . . . . Parts Recycled . | . . . . . . . . . . . . . . Recycled Matter . | . . . . . . . . . . . . . . Retrieved Matter . | . . . . . . . . . . . . . . Retrieved Components . | . . . . . . . . . . . . . . Parts Scanalyzed . | . . . . . . . . . . . . . . Part Schematics Acquired . | . . . . . . . . . . . . . . Parts Damaged . | . . . . . . . . . . . . . . Bothacking | -11 -10 -10 -9 -8 -8 -8 -7 -7 -7 -7 -6 -6 -6 ------------ Run | Jun Mat Min Mat Mat Gar Mat Fac Low Low Dat Pro Fac Ext Used RIF Installer 1 | . . . . . 1 . . . . . . . . Robots Hacked 2 | . . . . . . . 1 . . 1 . . . Non-combat . | . . . . . . . . . . . . . . Combat 2 | . . . . . . . 1 . . 1 . . . Robot Hacks Applied 2 | . . . . . . . 1 . . 1 . . . parse_system 1 | . . . . . . . . . . 1 . . . formatsys_high 1 | . . . . . . . 1 . . . . . . Relay Couplers Released 15 | . . . . . 15 . . . . . . . . Machine Destruction 15 | . . . . . 15 . . . . . . . . Attached 3 | . . . . . 1 . 1 . . 1 . . . Fabnet Peak Effective % . | . . . . . . . . . . . . . . Robots Rewired . | . . . . . . . . . . . . . . Allies Hacked . | . . . . . . . . . . . . . . Hacks Repelled . | . . . . . . . . . . . . . . Allies | -11 -10 -10 -9 -8 -8 -8 -7 -7 -7 -7 -6 -6 -6 -------- Run | Jun Mat Min Mat Mat Gar Mat Fac Low Low Dat Pro Fac Ext Total Allies 9 | . . . . . 2 . 1 . . . . . 6 Largest Group 6 | . . . . . 2 . 1 . . . . . 6 Highest-Rated Group 291 | . . . . . 50 . 12 . . . . . 291 Highest-Rated Ally 159 | . . . . . 25 . 12 . . . . . 159 Total Orders . | . . . . . . . . . . . . . . Ally Attacks 31 | . . . . . 10 . 3 . . . . . 18 Total Damage 734 | . . . . . 312 . 18 . . . . . 404 Kills 7 | . . . . . 3 . 1 . . . . . 3 Allies Corrupted . | . . . . . . . . . . . . . . Allies Melted 1 | . . . . . . . . . . . . . 1 Intel | -11 -10 -10 -9 -8 -8 -8 -7 -7 -7 -7 -6 -6 -6 ------- Run | Jun Mat Min Mat Mat Gar Mat Fac Low Low Dat Pro Fac Ext Robot Analysis Total 132 | . . . . . . 1 . . . 131 . . . Derelict Logs Recovered 3 | . . . . . . . . . . . 3 . . Drone Launches . | . . . . . . . . . . . . . . Drone Recoveries . | . . . . . . . . . . . . . . Exploration | -11 -10 -10 -9 -8 -8 -8 -7 -7 -7 -7 -6 -6 -6 ------------- Run | Jun Mat Min Mat Mat Gar Mat Fac Low Low Dat Pro Fac Ext Turns Passed 10339 | 71 1624 574 801 110 1112 2000 302 530 572 111 1240 489 803 Spaces Moved 5661 | 50 732 255 380 67 553 952 161 384 371 62 887 298 509 Core 28 | 6 3 . . . . . . . . . . . 19 Treads 1863 | . . . 136 67 553 952 155 . . . . . . Legs 2015 | 44 729 255 244 . . . . . . . . 253 490 Wheels 1755 | . . . . . . . 6 384 371 62 887 45 . Hover . | . . . . . . . . . . . . . . Flight . | . . . . . . . . . . . . . . Fastest Speed 50 | 50 120 190 160 160 160 160 115 115 130 115 100 115 50 Average Speed 148 | 111 188 190 179 160 160 160 160 127 130 124 117 119 118 Slowest Speed 550 | 120 550 190 190 160 160 160 240 130 130 130 130 120 350 Overloaded Moves . | . . . . . . . . . . . . . . Propulsion Burnouts . | . . . . . . . . . . . . . . Robots Hopped . | . . . . . . . . . . . . . . Cave-ins Triggered 1 | . . . . . . . . . . . . . 1 Exploration Rate (%) 49 | 3 91 62 53 8 69 83 5 61 57 65 83 7 48 Regions Visited 13 Branch Regions 6 Pre-discovered Areas 28 | . . . . . . . . . . 28 . . . Known Exits Taken 12 | 1 1 1 1 1 . 1 1 1 1 1 1 1 . Unknown Exits Taken . | . . . . . . . . . . . . . . Scrap Searched 8 | . . . . . . . . 3 2 . 3 . . Spaces Dug . | . . . . . . . . . . . . . . Terrain Destroyed 210 | . 13 8 3 . 86 10 . . . 20 17 20 33 Melee . | . . . . . . . . . . . . . . Projectile 12 | . . . . . . . . . . . 6 2 4 AOE 198 | . 13 8 3 . 86 10 . . . 20 11 18 29 Terrain Rammed . | . . . . . . . . . . . . . . Walls Destroyed . | . . . . . . . . . . . . . . Machines Disabled . | . . . . . . . . . . . . . . Actions | -11 -10 -10 -9 -8 -8 -8 -7 -7 -7 -7 -6 -6 -6 --------- Run | Jun Mat Min Mat Mat Gar Mat Fac Low Low Dat Pro Fac Ext Total 7002 | 65 951 333 444 69 686 1284 198 407 433 76 1030 385 641 Wait 736 | . 141 67 22 . 36 214 14 3 48 . 83 32 76 Move 5648 | 49 731 254 379 67 551 951 160 383 370 61 886 297 509 Hop . | . . . . . . . . . . . . . . Pick Up 108 | 12 29 1 6 . 12 13 6 2 . . 13 13 1 Fast Attach 8 | . 3 . . . 1 2 . . . . 1 1 . Attach 87 | 4 7 1 7 2 10 13 5 3 . 2 11 13 9 Detach 27 | . 3 1 1 . 10 3 1 2 . 1 . 4 1 Swap 5 | . 2 . . . 1 1 . . . . 1 . . Drop 61 | . 20 3 2 . 9 15 5 2 . . 2 2 1 Fire 309 | . 15 6 26 . 56 71 5 11 15 12 33 23 36 Melee 3 | . . . . . . 1 1 1 . . . . . Ram . | . . . . . . . . . . . . . . Kick 4 | . . . 1 . . . . . . . . . 3 Crush . | . . . . . . . . . . . . . . Escape Stasis 5 | . . . . . . . . . . . . . 5 Rewire 1 | . . . . . . . 1 . . . . . . Trap . | . . . . . . . . . . . . . . Miscellaneous . | . . . . . . . . . . . . . . Route ------- -11/Junkyard -10/Materials (discovered 2 exits: *Mat / *Min) -10/Mines (discovered 2 exits: *Mat x2) -9/Materials (discovered 4 exits: *Mat x2 / *Min x2) -8/Materials -8/Garrison (discovered 3 exits: *Mat x3) -8/Materials (discovered 2 exits: *Fac x2) -7/Factory -7/Lower Caves -7/Lower Caves -7/Data Miner -6/Proximity Caves -6/Factory (discovered 3 exits: Low / *Ext x2) -6/Extension History --------- Turn | Location | Event 4 | -11/Junkyard | Identified exit to Materials 4 | -11/Junkyard | Discovered exit to Materials (range 15) 72 | -11/Junkyard | Entered Materials 72 | -10/Materials | Evolved 1 slot: Weapon x1 411 | -10/Materials | Build established: Hacker-Tank 1007 | -10/Materials | Identified exit to Materials 1007 | -10/Materials | Discovered exit to Materials (range 16) 1538 | -10/Materials | Identified exit to Mines 1538 | -10/Materials | Discovered exit to Mines (range 15) 1696 | -10/Materials | Entered Mines 1907 | -10/Mines | Discovered exit to Materials (range 11) 2191 | -10/Mines | Found a damaged Exp. Sensor Array with a note attached 2197 | -10/Mines | Found Prototype Device 2198 | -10/Mines | Identified Exp. Sensor Array 2226 | -10/Mines | Discovered exit to Materials (range 7) 2270 | -10/Mines | Entered Materials 2270 | -9/Materials | Evolved 2 slots: Propulsion x1, Utility x1 2501 | -9/Materials | Build established: Hacker-Skirmisher 2597 | -9/Materials | Identified exit to Mines 2597 | -9/Materials | Discovered exit to Mines (range 11) 2630 | -9/Materials | Discovered exit to Mines (range 16) 2706 | -9/Materials | Identified exit to Materials 2706 | -9/Materials | Discovered exit to Materials (range 15) 3043 | -9/Materials | Discovered exit to Materials (range 8) 3071 | -9/Materials | Entered another Materials area 3071 | -8/Materials | Evolved 2 slots: Power x1, Utility x1 3181 | -8/Materials | Identified exit to Garrison 3181 | -8/Materials | Entered Garrison 3206 | -8/Garrison | Triggered checkpoint 3230 | -8/Garrison | Garrison Relay disabled 3330 | -8/Garrison | Triggered checkpoint 3360 | -8/Garrison | Triggered checkpoint 3392 | -8/Garrison | Triggered checkpoint 3474 | -8/Garrison | Triggered checkpoint 3481 | -8/Garrison | Rescued a captive Derelict 3483 | -8/Garrison | Rescued a captive Derelict 3588 | -8/Garrison | Garrison Relay disabled 3656 | -8/Garrison | Identified exit to Materials 3656 | -8/Garrison | Discovered exit to Materials (range 8) 3698 | -8/Garrison | Build established: Hacker-Tank 3712 | -8/Garrison | Triggered checkpoint 3808 | -8/Garrison | Triggered checkpoint 3849 | -8/Garrison | Discovered exit to Materials (range 10) 3857 | -8/Garrison | Destroyed 8 combat bots 3918 | -8/Garrison | Garrison Relay disabled 3963 | -8/Garrison | Attempted to access garrison exit controls, blocked by remote lockdown 4007 | -8/Garrison | Installed Relay Interface Framework 4121 | -8/Garrison | Discovered exit to Materials (range 12) 4217 | -8/Garrison | Garrison Relay disabled 4293 | -8/Garrison | Entered Materials 4300 | -8/Materials | Build established: Bothacker-Tank 5127 | -8/Materials | Build established: Bothacker-Gunner 5350 | -8/Materials | Identified exit to Factory 5350 | -8/Materials | Discovered exit to Factory (range 11) 5814 | -8/Materials | Build established: Bothacker-Mutant 6282 | -8/Materials | Discovered exit to Factory (range 5) 6293 | -8/Materials | Entered Factory 6293 | -7/Factory | Evolved 2 slots: Utility x2 6566 | -7/Factory | Identified exit to Lower Caves 6566 | -7/Factory | Discovered exit to Lower Caves (range 6) 6595 | -7/Factory | Entered Lower Caves 6997 | -7/Lower Caves | Attracted the attention of an 0b10 checkpoint 7119 | -7/Lower Caves | Identified exit to Lower Caves 7119 | -7/Lower Caves | Discovered exit to Lower Caves (range 5) 7125 | -7/Lower Caves | Entered another Lower Caves area 7332 | -7/Lower Caves | Build established: Hacker-Mutant 7361 | -7/Lower Caves | Spotted B-75 Beast 7396 | -7/Lower Caves | Encountered a Warlord checkpoint 7642 | -7/Lower Caves | Identified exit to Data Miner 7642 | -7/Lower Caves | Discovered exit to Data Miner (range 12) 7697 | -7/Lower Caves | Entered Data Miner 7697 | -7/Data Miner | Identified exit to Proximity Caves 7697 | -7/Data Miner | Discovered exit to Proximity Caves (range 6) 7722 | -7/Data Miner | Met Data Miner 7743 | -7/Data Miner | Interfaced with the Data Conduit 7805 | -7/Data Miner | Lost 3 parts (1p1u1w) 7808 | -7/Data Miner | Entered Proximity Caves 7906 | -6/Proximity Caves | Spotter reported a threat 7908 | -6/Proximity Caves | Spotter reported a threat 7961 | -6/Proximity Caves | Spotter reported a threat 7992 | -6/Proximity Caves | Spotted B-75 Beast 8042 | -6/Proximity Caves | Spotter reported a threat 8043 | -6/Proximity Caves | Identified exit to Factory 8207 | -6/Proximity Caves | Core integrity fell below 50% 8235 | -6/Proximity Caves | Lost 7 parts (2p1n2u2w) 8449 | -6/Proximity Caves | Build established: Bothacker-Mutant 8654 | -6/Proximity Caves | Attracted the attention of an 0b10 checkpoint 9017 | -6/Proximity Caves | Learned location of 1 exit from Factory 9048 | -6/Proximity Caves | Entered Factory 9048 | -6/Factory | Evolved 2 slots: Propulsion x1, Utility x1 9049 | -6/Factory | Identified exit to Extension 9050 | -6/Factory | Identified exit to Lower Caves 9051 | -6/Factory | Loaded intel: 279 machine locations 9398 | -6/Factory | Search patrols dispatched 9455 | -6/Factory | Identified exit to Garrison 9534 | -6/Factory | Discovered exit to Extension (range 5) 9537 | -6/Factory | Entered Extension 9538 | -6/Extension | Loaded intel: 36 machine locations 9618 | -6/Extension | Rescued a captive Derelict 9619 | -6/Extension | Rescued a captive Derelict 9656 | -6/Extension | Rescued a captive Derelict 9657 | -6/Extension | Rescued a captive Derelict 9689 | -6/Extension | Rescued a captive Derelict 9778 | -6/Extension | Rescued A7 9852 | -6/Extension | Build established: Bothacker-Tank 9860 | -6/Extension | Spotted B-75 Beast 9871 | -6/Extension | Extracted ID and sensor layout for unrecognized location from A7's data core 9872 | -6/Extension | Spotted B-75 Beast 10169 | -6/Extension | Destroyed B-75 Beast 10212 | -6/Extension | Disrupted transfer network 10231 | -6/Extension | Lost 3 parts (2u1w) 10246 | -6/Extension | Destroyed B-75 Beast 10280 | -6/Extension | Crushed by falling debris 10328 | -6/Extension | Core integrity fell below 50% 10336 | -6/Extension | Core integrity fell below 20% 10340 | -6/Extension | Destroyed by H-66 Slayer with Gauss Rifle Last Messages --------------- 10324_ Critical hit (Destroy). 10324_ Lyr. Light Armor Plating destroyed. 10325_ U-05 Engineer lays Concrete. 10325_ Slug penetrates Sealed Heavy Doors. 10326_ U-05 Engineer lays Concrete. 10326_ Imp. Carbon-fiber Leg destroyed. 10327_ Y,M4ZRJ=EEVG=9R=2/V/MWRLMLPX CXQXA=Y 10330_ Dropped Lrg. Storage Unit. 10331_ Penetrated by Slug. 10334_ U-05 Engineer lays Concrete. 10335_ Slug penetrates Reinforced Barrier. 10335_ Penetrated by Slug. 10335_ U-05 Engineer lays Concrete. 10339_ Penetrated by Slug. 10339_ Slug penetrates K-01 Serf. 10339_ K-01 Serf destroyed. 10340_ Penetrated by Slug. Map ----- +----------------------------------------------------+ | ?????????????# # %#???????""???????????????????? | | ?????????????" # % #???????""???????????????????? | | ?????????????" %= #???????"T???????????????????? | | ?????????????#T#### #???????""???????????????????? | | ?????????????###??#%#???????""???????????????????? | | ??????????????????#%#????????????????????????????? | | ??????????????????#%#??????????#?????????????????? | | ??????????????????#%#????###?? #?????????????????? | | ??????????????????#%#????###?? #?????????????????? | | ??????????????????# #?######?? #?????????????????? | | ????????????????###%### ##[### ###???????????????? | | ???????????######!=% !!%"" ""#???????????????? | | ???????????# # = % *[%"R" #???????????????? | | ???????????# % % != R #???????????????? | | ??###??????# # / #???????????????? | | ###"###########! ########????????? | | R % ?????? | | * h ?????? | | u g " ?????? | | t ! g "%" ??????? | | %=% *! %A R g%% " ??????? | | ###########"## # g g h hg ########???????? | | ??????????## # gg *% ##??????????????? | | ???????????#### # #???????????????? | | ??????????????### #???????????????? | | ????????????????# !!!@ #???????????????? | | ????""??????????###### #"""# ####???????????????? | | """"""???????????????###???####??????????????????? | | ?????????????????????????????????????????????????? | | | | | | | | | | | | | | | | | | | | | | | | | | | | | | | | | | | | | | | | | | | +----------------------------------------------------+ Best States ------------- Heat Dissipation 70 Energy Generation 31 Energy Capacity 480 Matter Stores 300 Matter Capacity 300 Sight Range 16 Robot Scan Range 20 Terrain Scan Density 10 ECM Strength 2 Armor Coverage 525 Resistance: KI 35 Resistance: TH 35 Resistance: EX 35 Resistance: EM 35 Resistance: I 35 Resistance: S 35 Resistance: P 35 Weapon Shielding 33 Evasion (%) 55 Targeting Accuracy 5 Recoil Reduction 3 Offensive Hacking 40 Relay Coupler Types 2 Relay Coupler Value 63 Item Schematics ----------------- None Robot Schematics ------------------ None Fabricated ------------ Nothing Alien Tech Used ----------------- None Achievements -------------- Assimilation Complete Challenges ------------ None Game ------ Seed Poop Manual? 1 Play Time 01:41:37 Cumulative 74.1 hours Start 2023.08.21 @ 20:36:15 End 2023.08.21 @ 22:24:28 Sessions 1 Manual Loads 0 Difficulty Explorer Special Mode None Game No. 84 Rogue 60 Adventurer 0 Explorer 24 Win Type - Total 1 Types 1/0/0/0/0/0/0/0/0 Lore% 20 Gallery% 48 Achievement% 41 Wizard Run 0 Options --------- ASCII 0 Keyboard 0 Movement Mouse Keybinds 0 Fullscreen 1 Font 18/SmallcapsGlow Map View 76x50 Tactical HUD 1 Map Filters NONE Filters NONE Steam 1 RUN: 41e01fe3-906a-448e-963b-2b9f9a67a4ee